Workbook

Sheet Portefeuille
A1: Evaluatiedatum | B1: 42319 | D1: Verhoog stop-loss met | E1: 0.03
D2: Stop-loss bijwerken | E2: Op vraag
D3: Geselecteerde rij | E3: 20
A5: Portefeuilledatum | B5: =SUM(Fondsen[Form date Portefeuille]) -> 
A6: Annual portefeuille | B6: =IF(Evaluatiedatum-Portefeuilledatum>365, ((SUM(Fondsen[Totale waarde])/SUM(Fondsen[Totale investering in EUR]))^(365.25/(Evaluatiedatum-Portefeuilledatum))-1),"") -> 
A7: Meerwaarde | B7: =SUM(Fondsen[Totale waarde])-SUM(Fondsen[Totale investering in EUR]) -> 0 | D7: Franky-Matic v1.8
A9: FONDSEN
A10: ISIN | B10: Beheerder | C10: Naam Fonds | D10: Categorie | E10: K/S | F10: Huidige Waarde | G10: Munt | H10: Huidige waarde in EUR | I10: 90% | J10: R ST LOSS | K10: CTR ST L | L10: ACTIE | M10: Totale investering in EUR | N10: Totale waarde | O10: Aantal | P10: Meerwaarde bedrag | Q10: Meerwaarde % | R10: Participatie investering | S10: Totale aankoop in EUR | T10: Form date Fonds | U10: Form date Portefeuille | V10: Form date Visible | W10: Annual | X10: Vorige totale waarde | Y10: Vorige waarde in EUR | Z10: +/- | AA10: Broker | AB10: Laatste update RSL
A11: LU0231490524 | B11: Aberdeen | C11: Aberdeen Global - Ind. Equity A2 | D11: aandelen India | F11: 121.81 | G11: USD | H11: =Fondsen[[#This Row],[Huidige Waarde]]/VLOOKUP(Fondsen[[#This Row],[Munt]],Koersen[],2,FALSE) -> 112.8392774 | I11: =Fondsen[[#This Row],[Huidige waarde in EUR]]*0.9 -> 101.5553497 | J11: 104.42922 | K11: =[90%]-[R ST LOSS] -> -2.873870301 | L11: =(Fondsen[[#This Row],[Huidige waarde in EUR]]-Fondsen[[#This Row],[R ST LOSS]])/Fondsen[[#This Row],[Huidige waarde in EUR]] -> 0.07453129472 | M11: =SUM(IF(Fondsen[[#This Row],[ISIN]]=TransactiesIn[ISIN],TransactiesIn[Investering in EUR]))-SUM(IF(Fondsen[[#This Row],[ISIN]]=TransactiesOut[ISIN],TransactiesOut[Opbrengst in EUR])) -> 0 | N11: =[Aantal]*[Huidige waarde in EUR] -> 0 | O11: =SUM(IF(Fondsen[[#This Row],[ISIN]]=TransactiesIn[ISIN],TransactiesIn[Aantal]))-SUM(IF(Fondsen[[#This Row],[ISIN]]=TransactiesOut[ISIN],TransactiesOut[Aantal])) -> 0 | P11: =Fondsen[[#This Row],[Totale waarde]]-Fondsen[[#This Row],[Totale investering in EUR]] -> 0 | Q11: =(Fondsen[[#This Row],[Totale waarde]]-Fondsen[[#This Row],[Totale investering in EUR]])/ABS(Fondsen[[#This Row],[Totale investering in EUR]]) ->  | R11: =Fondsen[[#This Row],[Totale waarde]]/SUM([Totale waarde]) ->  | S11: =SUM(IF(Fondsen[[#This Row],[ISIN]]=TransactiesIn[ISIN],TransactiesIn[Investering in EUR])) -> 0 | T11: =ROUND(SUM(IF(Fondsen[[#This Row],[ISIN]]=TransactiesIn[ISIN],(TransactiesIn[Datum Aankoop]*TransactiesIn[Investering in EUR])/Fondsen[[#This Row],[Totale aankoop in EUR]])),0) -> 0 | U11: =ROUND(Fondsen[[#This Row],[Form date Fonds]]*Fondsen[[#This Row],[Totale investering in EUR]]/SUM([Totale investering in EUR]),0) ->  | V11: =ROUND(Fondsen[[#This Row],[Form date Fonds]]*Fondsen[[#This Row],[Totale investering in EUR]]/Fondsen[[#Totals],[Totale investering in EUR]],0) ->  | W11: =IF(Evaluatiedatum-Fondsen[[#This Row],[Form date Fonds]]>365, ((Fondsen[[#This Row],[Totale waarde]]/Fondsen[[#This Row],[Totale investering in EUR]])^(365.25/(Evaluatiedatum-Fondsen[[#This Row],[Form date Fonds]]))-1),"") ->  | X11: 0 | Y11: 112.8497313 | Z11: =IF(Fondsen[[#This Row],[Vorige waarde in EUR]]<>0, (Fondsen[[#This Row],[Huidige waarde in EUR]]-Fondsen[[#This Row],[Vorige waarde in EUR]])/Fondsen[[#This Row],[Vorige waarde in EUR]],0) -> -9.263547939e-05 | AA11: KEY | AB11: 42318
A12: LU0119133188 | B12: Amundi | C12: Amundi Lu Amu Funds Glob Bond | D12: oblg. Wld | F12: 25.39 | G12: USD | H12: =Fondsen[[#This Row],[Huidige Waarde]]/VLOOKUP(Fondsen[[#This Row],[Munt]],Koersen[],2,FALSE) -> 23.52014822 | I12: =Fondsen[[#This Row],[Huidige waarde in EUR]]*0.9 -> 21.1681334 | J12: 21.51439 | K12: =[90%]-[R ST LOSS] -> -0.3462566049 | L12: =(Fondsen[[#This Row],[Huidige waarde in EUR]]-Fondsen[[#This Row],[R ST LOSS]])/Fondsen[[#This Row],[Huidige waarde in EUR]] -> 0.08527829835 | M12: =SUM(IF(Fondsen[[#This Row],[ISIN]]=TransactiesIn[ISIN],TransactiesIn[Investering in EUR]))-SUM(IF(Fondsen[[#This Row],[ISIN]]=TransactiesOut[ISIN],TransactiesOut[Opbrengst in EUR])) -> 0 | N12: =[Aantal]*[Huidige waarde in EUR] -> 0 | O12: =SUM(IF(Fondsen[[#This Row],[ISIN]]=TransactiesIn[ISIN],TransactiesIn[Aantal]))-SUM(IF(Fondsen[[#This Row],[ISIN]]=TransactiesOut[ISIN],TransactiesOut[Aantal])) -> 0 | P12: =Fondsen[[#This Row],[Totale waarde]]-Fondsen[[#This Row],[Totale investering in EUR]] -> 0 | Q12: =(Fondsen[[#This Row],[Totale waarde]]-Fondsen[[#This Row],[Totale investering in EUR]])/ABS(Fondsen[[#This Row],[Totale investering in EUR]]) ->  | R12: =Fondsen[[#This Row],[Totale waarde]]/SUM([Totale waarde]) ->  | S12: =SUM(IF(Fondsen[[#This Row],[ISIN]]=TransactiesIn[ISIN],TransactiesIn[Investering in EUR])) -> 0 | T12: =ROUND(SUM(IF(Fondsen[[#This Row],[ISIN]]=TransactiesIn[ISIN],(TransactiesIn[Datum Aankoop]*TransactiesIn[Investering in EUR])/Fondsen[[#This Row],[Totale aankoop in EUR]])),0) -> 0 | U12: =ROUND(Fondsen[[#This Row],[Form date Fonds]]*Fondsen[[#This Row],[Totale investering in EUR]]/SUM([Totale investering in EUR]),0) ->  | V12: =ROUND(Fondsen[[#This Row],[Form date Fonds]]*Fondsen[[#This Row],[Totale investering in EUR]]/Fondsen[[#Totals],[Totale investering in EUR]],0) ->  | W12: =IF(Evaluatiedatum-Fondsen[[#This Row],[Form date Fonds]]>365, ((Fondsen[[#This Row],[Totale waarde]]/Fondsen[[#This Row],[Totale investering in EUR]])^(365.25/(Evaluatiedatum-Fondsen[[#This Row],[Form date Fonds]]))-1),"") ->  | X12: 0 | Y12: 23.52232722 | Z12: =IF(Fondsen[[#This Row],[Vorige waarde in EUR]]<>0, (Fondsen[[#This Row],[Huidige waarde in EUR]]-Fondsen[[#This Row],[Vorige waarde in EUR]])/Fondsen[[#This Row],[Vorige waarde in EUR]],0) -> -9.263547939e-05 | AA12: KEY | AB12: 42318
A13: LU0201576401 | B13: Amundi | C13: Amun Lu Am Fds Euro Infl C | D13: oblig inflat Eur | F13: 147.29 | G13: EUR | H13: =Fondsen[[#This Row],[Huidige Waarde]]/VLOOKUP(Fondsen[[#This Row],[Munt]],Koersen[],2,FALSE) -> 147.29 | I13: =Fondsen[[#This Row],[Huidige waarde in EUR]]*0.9 -> 132.561 | J13: 143.68782 | K13: =[90%]-[R ST LOSS] -> -11.12682 | L13: =(Fondsen[[#This Row],[Huidige waarde in EUR]]-Fondsen[[#This Row],[R ST LOSS]])/Fondsen[[#This Row],[Huidige waarde in EUR]] -> 0.02445637857 | M13: =SUM(IF(Fondsen[[#This Row],[ISIN]]=TransactiesIn[ISIN],TransactiesIn[Investering in EUR]))-SUM(IF(Fondsen[[#This Row],[ISIN]]=TransactiesOut[ISIN],TransactiesOut[Opbrengst in EUR])) -> 0 | N13: =[Aantal]*[Huidige waarde in EUR] -> 0 | O13: =SUM(IF(Fondsen[[#This Row],[ISIN]]=TransactiesIn[ISIN],TransactiesIn[Aantal]))-SUM(IF(Fondsen[[#This Row],[ISIN]]=TransactiesOut[ISIN],TransactiesOut[Aantal])) -> 0 | P13: =Fondsen[[#This Row],[Totale waarde]]-Fondsen[[#This Row],[Totale investering in EUR]] -> 0 | Q13: =(Fondsen[[#This Row],[Totale waarde]]-Fondsen[[#This Row],[Totale investering in EUR]])/ABS(Fondsen[[#This Row],[Totale investering in EUR]]) ->  | R13: =Fondsen[[#This Row],[Totale waarde]]/SUM([Totale waarde]) ->  | S13: =SUM(IF(Fondsen[[#This Row],[ISIN]]=TransactiesIn[ISIN],TransactiesIn[Investering in EUR])) -> 0 | T13: =ROUND(SUM(IF(Fondsen[[#This Row],[ISIN]]=TransactiesIn[ISIN],(TransactiesIn[Datum Aankoop]*TransactiesIn[Investering in EUR])/Fondsen[[#This Row],[Totale aankoop in EUR]])),0) -> 0 | U13: =ROUND(Fondsen[[#This Row],[Form date Fonds]]*Fondsen[[#This Row],[Totale investering in EUR]]/SUM([Totale investering in EUR]),0) ->  | V13: =ROUND(Fondsen[[#This Row],[Form date Fonds]]*Fondsen[[#This Row],[Totale investering in EUR]]/Fondsen[[#Totals],[Totale investering in EUR]],0) ->  | W13: =IF(Evaluatiedatum-Fondsen[[#This Row],[Form date Fonds]]>365, ((Fondsen[[#This Row],[Totale waarde]]/Fondsen[[#This Row],[Totale investering in EUR]])^(365.25/(Evaluatiedatum-Fondsen[[#This Row],[Form date Fonds]]))-1),"") ->  | X13: 0 | Y13: 147.29 | Z13: =IF(Fondsen[[#This Row],[Vorige waarde in EUR]]<>0, (Fondsen[[#This Row],[Huidige waarde in EUR]]-Fondsen[[#This Row],[Vorige waarde in EUR]])/Fondsen[[#This Row],[Vorige waarde in EUR]],0) -> 0 | AA13: KEY | AB13: 42318
A14: IE00B5WHFQ43 | B14: Blackrock | C14: iSHR Mexico tracker CMEX Cap | D14: aandelen Mexico | F14: 110.99 | G14: EUR | H14: =Fondsen[[#This Row],[Huidige Waarde]]/VLOOKUP(Fondsen[[#This Row],[Munt]],Koersen[],2,FALSE) -> 110.99 | I14: =Fondsen[[#This Row],[Huidige waarde in EUR]]*0.9 -> 99.891 | J14: 100.89757 | K14: =[90%]-[R ST LOSS] -> -1.00657 | L14: =(Fondsen[[#This Row],[Huidige waarde in EUR]]-Fondsen[[#This Row],[R ST LOSS]])/Fondsen[[#This Row],[Huidige waarde in EUR]] -> 0.09093098477 | M14: =SUM(IF(Fondsen[[#This Row],[ISIN]]=TransactiesIn[ISIN],TransactiesIn[Investering in EUR]))-SUM(IF(Fondsen[[#This Row],[ISIN]]=TransactiesOut[ISIN],TransactiesOut[Opbrengst in EUR])) -> 0 | N14: =[Aantal]*[Huidige waarde in EUR] -> 0 | O14: =SUM(IF(Fondsen[[#This Row],[ISIN]]=TransactiesIn[ISIN],TransactiesIn[Aantal]))-SUM(IF(Fondsen[[#This Row],[ISIN]]=TransactiesOut[ISIN],TransactiesOut[Aantal])) -> 0 | P14: =Fondsen[[#This Row],[Totale waarde]]-Fondsen[[#This Row],[Totale investering in EUR]] -> 0 | Q14: =(Fondsen[[#This Row],[Totale waarde]]-Fondsen[[#This Row],[Totale investering in EUR]])/ABS(Fondsen[[#This Row],[Totale investering in EUR]]) ->  | R14: =Fondsen[[#This Row],[Totale waarde]]/SUM([Totale waarde]) ->  | S14: =SUM(IF(Fondsen[[#This Row],[ISIN]]=TransactiesIn[ISIN],TransactiesIn[Investering in EUR])) -> 0 | T14: =ROUND(SUM(IF(Fondsen[[#This Row],[ISIN]]=TransactiesIn[ISIN],(TransactiesIn[Datum Aankoop]*TransactiesIn[Investering in EUR])/Fondsen[[#This Row],[Totale aankoop in EUR]])),0) -> 0 | U14: =ROUND(Fondsen[[#This Row],[Form date Fonds]]*Fondsen[[#This Row],[Totale investering in EUR]]/SUM([Totale investering in EUR]),0) ->  | V14: =ROUND(Fondsen[[#This Row],[Form date Fonds]]*Fondsen[[#This Row],[Totale investering in EUR]]/Fondsen[[#Totals],[Totale investering in EUR]],0) ->  | W14: =IF(Evaluatiedatum-Fondsen[[#This Row],[Form date Fonds]]>365, ((Fondsen[[#This Row],[Totale waarde]]/Fondsen[[#This Row],[Totale investering in EUR]])^(365.25/(Evaluatiedatum-Fondsen[[#This Row],[Form date Fonds]]))-1),"") ->  | X14: 0 | Y14: 110.99 | Z14: =IF(Fondsen[[#This Row],[Vorige waarde in EUR]]<>0, (Fondsen[[#This Row],[Huidige waarde in EUR]]-Fondsen[[#This Row],[Vorige waarde in EUR]])/Fondsen[[#This Row],[Vorige waarde in EUR]],0) -> 0 | AA14: KEY | AB14: 42318
M15: =SUBTOTAL(9,[Totale investering in EUR]) -> 0 | N15: =SUBTOTAL(9,[Totale waarde]) -> 0 | P15: =SUBTOTAL(9,[Meerwaarde bedrag]) -> 0 | Q15: =(Fondsen[[#Totals],[Totale waarde]]-Fondsen[[#Totals],[Totale investering in EUR]])/Fondsen[[#Totals],[Totale investering in EUR]] ->  | R15: =SUBTOTAL(9,[Totale waarde])/SUM([Totale waarde]) ->  | W15: =IF(Evaluatiedatum-SUBTOTAL(9,[Form date Visible])>365, ((SUBTOTAL(9,[Totale waarde])/SUBTOTAL(9,[Totale investering in EUR]))^(365.25/(Evaluatiedatum-SUBTOTAL(9,[Form date Visible])))-1),"") ->  | X15: =SUM([Vorige totale waarde]) -> 0 | Y15: =SUM([Vorige waarde in EUR]) -> 394.6520586 | Z15: =IF(SUBTOTAL(9,[Vorige totale waarde])<>0,(SUBTOTAL(9,[Totale waarde])-SUBTOTAL(9,[Vorige totale waarde]))/SUBTOTAL(9,[Vorige totale waarde]),0) -> 0
A31: TRANSACTIES IN
A32: ISIN | B32: Beheerder | C32: Naam Fonds | D32: Categorie | E32: Investering in EUR | F32: Datum Aankoop | G32: Aantal | H32: Stukprijs
A33: BE0124921827 | B33: Aberdeen | C33: Aberdeen Global - Ind. Equity A2 | D33: aandelen India | E33: 127293 | F33: 31332 | G33: 72 | H33: =IF(TransactiesIn[[#This Row],[Aantal]]<>0,TransactiesIn[[#This Row],[Investering in EUR]]/TransactiesIn[[#This Row],[Aantal]],"") -> 1767.958333
A34: BE02 8447 5050 0040 | B34: Amundi | C34: Amun Lu Am Fds Euro Infl C | D34: oblig inflat Eur | E34: 9952 | F34: 31777 | G34: 100 | H34: =IF(TransactiesIn[[#This Row],[Aantal]]<>0,TransactiesIn[[#This Row],[Investering in EUR]]/TransactiesIn[[#This Row],[Aantal]],"") -> 99.52
A35: LU1159238549 | B35: Amundi | C35: Amundi Lu Amu Funds Glob Bond | D35: oblg. Wld | E35: 11537 | F35: 41615 | G35: 929.9149 | H35: =IF(TransactiesIn[[#This Row],[Aantal]]<>0,TransactiesIn[[#This Row],[Investering in EUR]]/TransactiesIn[[#This Row],[Aantal]],"") -> 12.40651161
A36: LU1159236501 | B36: Blackrock | C36: iSHR Mexico tracker CMEX Cap | D36: aandelen Mexico | E36: 37746 | F36: 41325 | G36: 4170.59 | H36: =IF(TransactiesIn[[#This Row],[Aantal]]<>0,TransactiesIn[[#This Row],[Investering in EUR]]/TransactiesIn[[#This Row],[Aantal]],"") -> 9.050518032
A80: TRANSACTIES UIT
A81: ISIN | B81: Beheerder | C81: Naam Fonds | D81: Categorie | E81: Opbrengst in EUR | F81: Datum verkoop | G81: Aantal | H81: Stukprijs
B82: =VLOOKUP(TransactiesOut[[#This Row],[ISIN]],Fondsen[],COLUMN(Fondsen[[#Headers],[Beheerder]]),FALSE) ->  | C82: =VLOOKUP(TransactiesOut[[#This Row],[ISIN]],Fondsen[],COLUMN(Fondsen[[#Headers],[Naam Fonds]]),FALSE) ->  | D82: =VLOOKUP(TransactiesOut[[#This Row],[ISIN]],Fondsen[],COLUMN(Fondsen[[#Headers],[Categorie]]),FALSE) ->  | H82: =IF([Aantal]<>0,[Opbrengst in EUR]/[Aantal],"") -> 

Sheet Koersen
A1: Munt | B1: Koers | C1: Naam
A2: EUR | B2: 1 | C2: Euro
A3: USD | B3: 1.0795 | C3: Amerikaanse Dollar
A4: JPY | B4: 132.3815 | C4: Japanse Yen
A5: GBP | B5: 0.7088 | C5: Britse Pond
A6: CHF | B6: 1.0807 | C6: Zwitserse Frank
A7: NOK | B7: 9.3738 | C7: Noorse kroon
A8: CAD | B8: 1.4336 | C8: Canadese Dollar
A9: AUD | B9: 1.5154 | C9: Australische Dollar
A10: CNY | B10: 6.8745 | C10: Chinese Yuan
A11: SEK | B11: 9.3336 | C11: Zweedse Kroon
